bitfinex-derivatives/quotes_ETHF0:USTF0_20250905
["timestamp","ask_amount","ask_price","bid_price","bid_amount"]
[1757080283238,2.77050532,4457.9,4457.8,3.2078]
[1757080283547,2.77050532,4457.9,4457.8,3.61148]
[1757080283744,2.77050532,4457.9,4457.8,3.2078]
[1757080284245,4.29330532,4457.9,4457.8,3.2078]
[1757080284547,6.77050532,4457.9,4457.6,3.2078]
[1757080284752,1.5228,4457.8,4457.7,0.40368]
[1757080285042,2.77050532,4457.9,4457.6,3.4528]
[1757080285246,2.77050532,4457.9,4457.7,0.40368]
[1757080285447,1.5228,4457.8,4457.7,0.40368]
[1757080285748,2.77050532,4457.9,4457.6,3.85649]
[1757080285944,2.77050532,4457.9,4457.7,0.245]
[1757080286246,4.29330532,4457.9,4457.8,0.40367]
[1757080286448,2.77050532,4457.9,4457.7,0.64868]
[1757080286646,1.5228,4457.8,4457.7,0.64868]
[1757080287047,2.77050532,4457.9,4457.8,0.40367]
[1757080287446,4.29330532,4457.9,4457.8,0.40367]
[1757080287646,2.77050532,4457.9,4457.8,0.64867]
[1757080287850,2.77050532,4457.9,4457.8,0.245]
[1757080288145,4.29330532,4457.9,4457.8,0.245]
[1757080288350,2.77050532,4457.9,4457.7,0.40367]
[1757080288551,1.5228,4457.8,4457.7,0.40367]
[1757080288857,1.5228,4457.8,4457.6,3.85549]
[1757080289054,1.5228,4457.8,4457.7,0.40368]
[1757080289755,1.5228,4457.8,4457.6,3.4518]
[1757080290051,0.244,4458.8,4457.7,2.94265033]
[1757080290246,1.5228,4458.4,4457.8,3.4518]
[1757080290446,1.5228,4457.9,4457.4,0.40369]
[1757080290653,1.5228,4457.9,4456.8,2.01883]
[1757080290654,1.5228,4457.9,4457.8,3.61147]
[1757080291457,1.5228,4457.9,4457.8,3.2078]
[1757080291650,0.5996,4458.5,4457.9,1.00916]
[1757080291948,1.5228,4457.9,4457.8,3.4518]
[1757080292354,1.5228,4457.9,4457.8,3.2078]
[1757080292551,1.5228,4457.9,4457.8,0.0332]
[1757080292754,4.0,4457.9,4457.2,3.2078]
[1757080293053,1.5228,4457.9,4457.2,3.2078]
[1757080293253,1.5228,4457.9,4457.2,3.61152]
[1757080293552,3.2078,4458.3,4457.5,1.41292]
[1757080293852,3.2078,4458.3,4457.6,1.89078]
[1757080293853,0.244,4458.2,4457.6,1.89078]
[1757080294051,1.7668,4458.2,4457.8,1.4871]
[1757080294256,3.2078,4458.3,4458.1,0.40365]
[1757080294454,0.244,4458.6,4458.2,0.40362]
[1757080294652,3.2078,4458.8,4458.1,0.244]
[1757080294856,3.2078,4458.8,4458.1,1.7311]
[1757080295049,3.2078,4458.8,4458.1,2.13474]
[1757080295354,3.2078,4458.8,4458.2,0.40364]
[1757080295550,1.5228,4458.7,4457.5,1.4871]
[1757080295753,1.5228,4457.7,4457.0,1.4871]
[1757080296148,0.244,4457.6,4457.0,1.89084]
[1757080296355,3.2078,4457.1,4456.4,1.4871]
[1757080296561,3.4518,4457.1,4456.4,1.4871]
[1757080296748,3.2078,4456.5,4455.6,1.4871]
[1757080296951,3.4518,4456.5,4455.8,1.4871]
[1757080297253,0.244,4456.9,4456.4,0.4038]
[1757080297560,3.2078,4457.0,4456.7,1.4871]
[1757080297855,3.2078,4457.0,4456.6,1.4871]
[1757080298053,3.2078,4457.0,4456.4,0.244]
[1757080298253,0.244,4457.1,4456.4,5.34269]
[1757080298652,0.244,4457.1,4456.6,1.4871]
[1757080298952,3.2078,4457.5,4457.1,1.4871]
[1757080299153,0.244,4457.9,4457.2,1.25333]
[1757080299351,3.2078,4458.6,4458.0,0.5986]
[1757080299550,0.244,4458.5,4457.9,1.4871]
[1757080299751,1.5228,4458.4,4457.6,3.4518]
[1757080299946,3.2078,4458.0,4457.3,1.4871]
[1757080300152,3.2078,4457.5,4456.9,0.244]
[1757080300351,3.4518,4457.5,4456.8,1.4871]
[1757080300953,0.244,4457.5,4457.1,1.4871]
[1757080301349,0.244,4457.5,4457.0,0.5986]
[1757080301548,0.244,4457.5,4457.3,1.4871]
[1757080301756,0.244,4457.5,4457.4,1.4871]
[1757080302657,0.244,4457.5,4457.1,1.4871]
[1757080302861,0.244,4457.5,4457.2,0.40372]
[1757080303158,3.2078,4458.1,4457.5,0.5986]
[1757080303761,3.2078,4458.7,4458.1,1.89074]
[1757080303961,3.4518,4458.7,4458.1,1.89074]
[1757080304157,3.4518,4458.7,4458.1,1.4871]
[1757080304364,3.4518,4458.7,4458.2,0.40363]
[1757080304664,1.19136061,4459.1,4458.6,1.4871]
[1757080305055,3.2078,4458.8,4457.9,1.4871]
[1757080305262,1.7668,4458.7,4457.9,1.4871]
[1757080305661,1.5228,4458.4,4457.8,3.2078]
[1757080305858,3.4518,4458.3,4457.5,3.2078]
[1757080306263,1.5228,4457.7,4456.6,1.4871]
[1757080306460,3.2078,4456.8,4456.0,1.4871]
[1757080306762,3.2078,4456.8,4455.1,1.0098]
[1757080306763,1.5228,4456.2,4455.3,3.2078]
[1757080307068,3.2078,4455.5,4454.8,3.49255744]
[1757080307268,3.2078,4455.5,4455.0,0.5986]
[1757080307468,30.966,4457.1,4455.6,1.89097]
[1757080307469,3.2078,4456.3,4455.6,1.89097]
[1757080307664,0.244,4456.2,4455.7,0.40386]
[1757080307966,0.244,4456.2,4455.8,0.40386]
[1757080308161,0.244,4456.2,4455.9,1.4556]
[1757080308359,0.244,4456.2,4455.6,0.40387]
[1757080308564,0.244,4456.4,4455.7,1.4556]
[1757080308959,3.2078,4456.8,4455.9,0.40384]
[1757080309261,0.244,4456.7,4455.6,1.85947]
[1757080309467,0.244,4456.7,4455.6,1.4556]
[1757080309666,0.244,4456.7,4455.7,0.40386]
[1757080309863,3.2078,4456.8,4455.8,1.4556]
[1757080310160,0.244,4456.7,4456.3,1.85941]
[1757080310370,3.2078,4457.3,4456.8,0.99916]
[1757080310571,3.2078,4457.3,4456.9,1.4556]
[1757080310974,3.2078,4457.3,4456.8,0.5954]
[1757080311166,1.4408,4457.2,4456.2,1.4556]
[1757080311467,1.4408,4457.2,4455.7,3.2078]
[1757080311672,3.2078,4456.7,4455.7,3.2078]
[1757080311871,0.244,4456.6,4455.8,2.86251149]
[1757080312167,0.244,4456.6,4455.7,3.2078]
[1757080312570,0.244,4456.6,4455.7,3.61165]
[1757080312770,0.244,4456.6,4456.0,1.4556]
[1757080313172,3.2078,4456.2,4455.2,1.4556]
[1757080313472,3.2078,4455.7,4454.7,0.40395]
[1757080313672,0.243,4455.6,4454.7,0.40395]
[1757080314066,3.2078,4456.4,4455.3,1.4556]
[1757080314272,3.4508,4456.4,4455.8,1.4556]
[1757080314674,3.4508,4456.4,4455.8,1.85946]
[1757080314976,3.4508,4456.4,4455.8,1.4556]
[1757080316271,1.4408,4456.3,4455.3,3.6117]
[1757080316473,0.243,4456.3,4455.5,0.5954]
[1757080316768,0.243,4456.3,4455.8,1.4556]
[1757080316972,0.243,4456.3,4455.9,1.4556]
[1757080317170,0.243,4456.3,4455.7,1.4556]
[1757080317573,0.243,4456.3,4455.4,3.61169]
[1757080317773,0.243,4456.3,4455.6,1.4556]
[1757080318766,3.2078,4455.7,4455.0,2.051]
[1757080319175,3.2078,4455.7,4455.0,0.99932]
[1757080319378,3.2078,4455.7,4455.6,1.4556]
[1757080320380,0.243,4456.1,4456.0,2.051]
[1757080321272,0.243,4456.1,4456.0,1.4556]
[1757080321572,3.2078,4456.3,4454.9,3.2078]
[1757080321781,0.243,4456.2,4455.8,1.4556]
[1757080321974,0.243,4456.2,4455.6,4.6634]
[1757080322374,0.243,4456.2,4455.6,1.4556]
[1757080322779,0.243,4456.2,4455.6,1.85947]
[1757080322980,0.243,4456.2,4455.7,0.40386]
[1757080323177,0.243,4456.2,4455.6,1.4556]
[1757080323480,0.243,4456.2,4455.8,0.40385]
[1757080323787,3.2078,4456.3,4456.2,0.40382]
[1757080323980,3.4508,4457.3,4456.7,1.4556]
[1757080324180,1.4408,4457.2,4456.2,1.4556]
[1757080324479,1.66518,4457.2,4456.0,3.2078]
[1757080324677,1.4408,4456.9,4456.0,3.2078]
[1757080324872,0.243,4456.8,4456.2,1.4556]
[1757080325178,3.2078,4457.3,4456.4,0.40378]
[1757080325380,3.2078,4457.3,4457.0,0.5954]
[1757080325381,3.4508,4457.3,4457.0,0.5954]
[1757080325681,3.4508,4457.3,4456.6,1.4556]
[1757080326096,1.4408,4457.2,4456.1,1.4556]
[1757080326286,3.4508,4457.3,4456.2,1.00955]
[1757080326487,4.8916,4457.3,4456.1,4.37649892]
[1757080326686,4.8916,4457.3,4456.1,1.85943]
[1757080326893,4.8916,4457.3,4456.3,1.4556]
[1757080327087,4.6486,4457.3,4456.3,1.4556]
[1757080327282,0.243,4457.2,4456.3,1.4556]
[1757080327590,3.2078,4456.8,4455.7,1.4556]
[1757080327889,0.243,4456.7,4455.9,1.4556]
[1757080328388,0.243,4456.7,4456.3,1.4556]
[1757080328581,0.243,4456.7,4456.1,1.4556]
[1757080329382,3.2078,4456.2,4455.5,0.8384]
[1757080329684,1.4408,4456.4,4455.4,1.4556]
[1757080329685,3.2078,4455.6,4455.4,1.4556]
[1757080329987,3.2078,4455.6,4455.0,0.5954]
[1757080330186,0.243,4455.5,4454.9,1.4556]
[1757080330385,0.243,4455.5,4455.0,0.5954]
[1757080330689,0.243,4455.5,4455.1,1.4556]
[1757080330889,0.243,4455.5,4455.0,0.5954]
[1757080331187,0.243,4455.5,4455.1,1.4556]
[1757080331386,0.243,4455.5,4454.5,0.99937]
[1757080331387,4.6486,4455.4,4454.5,0.99937]
[1757080331588,4.6486,4455.4,4454.6,1.6976]
[1757080331784,1.4408,4455.4,4455.0,3.2078]
[1757080332089,0.242,4455.8,4455.1,1.4556]
[1757080332992,0.242,4455.8,4455.6,1.4556]
[1757080333187,0.242,4455.8,4455.5,0.5954]
[1757080333392,3.2078,4456.0,4455.0,0.99932]
[1757080333393,3.2078,4456.0,4455.0,0.3903]
[1757080333588,0.0441,4453.9,4452.8,0.17067721]
[1757080333889,3.2078,4453.2,4451.5,0.5954]
[1757080334087,0.249,4453.1,4449.6,0.024]
[1757080334386,0.22444999,4451.0,4449.6,0.024]
[1757080334586,0.1123,4450.9,4449.0,0.22789261]
[1757080334788,0.098,4450.8,4449.0,0.22789261]
[1757080335087,0.089,4450.7,4449.0,0.5954]
[1757080335291,0.009,4450.8,4448.9,7.89736107]
[1757080335851,0.22444999,4449.0,4448.9,7.89736107]
[1757080336288,7.75565341,4449.0,4447.4,1.4556]
[1757080336590,0.026,4449.1,4447.4,1.4556]
[1757080336591,0.22444999,4448.1,4447.4,1.4556]
[1757080336785,3.2078,4448.1,4447.4,1.4556]
[1757080336979,0.22444999,4447.8,4447.5,1.4556]
[1757080337192,3.2078,4448.4,4448.3,6.58888469]
[1757080337584,3.2078,4449.0,4448.3,6.58888469]
[1757080337780,3.2078,4448.4,4448.3,6.58888469]
[1757080338288,3.2078,4448.4,4448.3,5.13328469]
[1757080338791,3.44320843,4448.4,4448.3,5.13328469]
[1757080338987,3.44320843,4448.4,4448.3,6.59748469]
[1757080339887,3.2078,4448.9,4448.3,10.59748469]
[1757080340093,3.2078,4448.9,4448.4,0.8276]
[1757080340289,3.2078,4449.5,4448.5,1.4642]
[1757080340497,3.2078,4450.0,4449.1,1.4642]
[1757080340696,0.1123,4450.9,4449.7,3.2078]
[1757080340890,0.23165912,4450.8,4450.0,3.2078]
[1757080341091,0.1123,4450.9,4449.6,2.2918]
[1757080341395,0.1123,4450.9,4449.6,0.5736]
[1757080341598,0.22444999,4449.7,4449.1,1.4642]
[1757080341795,1.4534,4449.5,4448.4,2.0378]
[1757080342099,0.254,4449.6,4448.5,1.4642]
[1757080342292,0.254,4449.6,4448.7,1.4642]
[1757080342487,3.4618,4450.4,4449.1,1.4642]
[1757080342692,3.4618,4450.4,4449.3,1.4642]
[1757080343093,3.2078,4450.4,4449.4,1.4642]
[1757080343394,3.2078,4450.4,4449.5,3.2078]
[1757080343591,3.2078,4450.4,4449.7,1.4642]
[1757080343787,0.60775584,4450.8,4449.7,1.4642]
[1757080343992,0.60775584,4450.8,4449.9,1.4642]
[1757080344194,0.22444999,4450.2,4449.9,1.4642]
[1757080344494,0.22444999,4450.6,4449.8,1.4642]
[1757080344993,0.60775584,4450.8,4450.0,1.4642]
[1757080345186,0.22444999,4450.6,4450.0,1.4642]
[1757080345386,3.2078,4450.1,4449.1,1.4642]
[1757080345592,0.254,4450.0,4448.5,0.254]
[1757080345894,0.22444999,4448.9,4448.7,1.4642]
[1757080346197,0.22444999,4448.9,4448.8,1.4642]
[1757080346392,0.254,4449.4,4448.0,1.4642]
[1757080346597,0.22444999,4449.2,4448.5,1.4642]
[1757080346995,3.2078,4449.5,4449.0,0.5736]
[1757080347198,3.2078,4449.5,4449.1,1.4642]
[1757080347392,3.2078,4449.5,4449.0,0.5736]
[1757080347591,3.43224999,4449.5,4448.9,3.2078]
[1757080347792,3.2078,4450.0,4449.2,0.40445]
[1757080347997,3.2078,4450.0,4449.4,3.2078]
[1757080348193,3.2078,4450.0,4449.6,0.5736]
[1757080348486,3.2078,4450.0,4449.0,0.97806]
[1757080348487,5.4534,4449.9,4448.3,1.4642]
[1757080348691,3.4618,4450.0,4447.7,1.4642]
[1757080348692,1.4534,4448.8,4447.7,1.4642]
[1757080348891,3.2078,4448.9,4448.5,0.40452]
[1757080349195,3.2078,4449.4,4448.6,1.4642]
[1757080349397,3.2078,4449.4,4447.8,1.4642]
[1757080349398,3.2078,4448.7,4447.8,1.4642]
[1757080349701,3.4618,4448.7,4447.3,1.4642]
[1757080349997,3.2078,4448.7,4448.0,1.4642]
[1757080350200,3.2078,4448.7,4448.4,0.5736]
[1757080350396,3.2078,4448.7,4448.5,1.4642]
[1757080350999,3.2078,4449.0,4448.4,2.0378]
[1757080351193,3.2078,4449.0,4448.0,0.254]
[1757080351393,0.22444999,4448.4,4448.1,1.4642]
[1757080351599,3.2078,4449.0,4448.1,1.4642]
[1757080351904,3.2078,4449.0,4447.8,4.18598]
[1757080351905,3.2078,4448.4,4447.8,3.2078]
[1757080352097,1.4534,4448.3,4447.5,1.4642]
[1757080352303,0.22444999,4447.7,4446.9,0.65866]
[1757080352597,0.1124,4447.6,4446.9,1.4642]
[1757080352998,0.22444999,4447.5,4446.9,1.7182]
[1757080353199,0.22444999,4447.4,4446.9,1.4642]
[1757080353403,3.2078,4447.3,4446.7,1.4642]
[1757080353601,3.2078,4447.3,4446.5,0.254]
[1757080353799,0.22444999,4446.8,4446.3,0.254]
[1757080354104,3.2078,4447.3,4446.3,0.254]
[1757080354304,0.22315484,4446.8,4446.3,0.65871]
[1757080354505,0.22315484,4446.8,4446.4,1.4642]
[1757080354704,3.2078,4447.3,4446.5,0.4047]
[1757080354906,0.22315484,4446.9,4446.6,0.5736]
[1757080355197,0.22315484,4446.8,4446.7,1.4642]
[1757080355403,3.2078,4447.3,4446.4,1.8689]
[1757080355603,0.22315484,4447.1,4446.4,0.4047]
[1757080355804,0.22315484,4447.1,4446.5,1.8689]
[1757080355997,3.2078,4447.3,4446.5,4.672]
[1757080356203,0.22315484,4447.1,4446.5,5.0767]
[1757080356397,3.2078,4447.3,4446.9,0.40465]
[1757080356599,0.1124,4447.6,4447.3,1.4642]
[1757080356805,0.1124,4447.6,4447.2,0.5736]
[1757080356992,0.1124,4447.6,4447.3,1.4642]
[1757080357600,0.1124,4447.6,4447.5,2.44241]
[1757080357800,0.1124,4447.6,4447.5,2.0378]
[1757080358099,1.19136061,4448.2,4448.0,0.5736]
[1757080358405,0.22173383,4448.1,4448.0,5.4986]
[1757080358607,1.19136061,4448.2,4448.1,1.4642]
[1757080358904,1.19136061,4448.2,4448.1,1.86875]
[1757080359101,1.58671044,4448.9,4448.2,1.01137]
[1757080359308,1.58671044,4448.9,4448.8,1.4642]
[1757080359603,1.58671044,4448.9,4448.8,1.86869]
[1757080359810,1.98560101,4449.5,4449.4,0.40444]
[1757080360007,1.98560101,4449.5,4449.4,5.32944]
[1757080360310,3.43900101,4449.5,4449.4,3.4608]
[1757080360602,2.20875585,4449.5,4448.7,3.2078]
[1757080360906,1.98560101,4449.5,4448.8,0.253]
[1757080361109,1.98560101,4449.5,4449.0,0.40445]
[1757080361307,1.98560101,4449.5,4449.4,1.86864]
[1757080361507,1.98560101,4449.5,4449.4,2.12164]
[1757080361708,1.98560101,4449.5,4449.4,5.02591237]
[1757080362203,1.4534,4450.5,4449.7,0.4044]
[1757080362503,0.5849,4450.2,4449.8,0.253]
[1757080362707,0.22315484,4450.1,4449.8,0.253]
[1757080363003,1.67655484,4450.1,4450.0,3.2078]
[1757080363206,1.4534,4450.1,4449.5,3.2078]
[1757080363507,2.05162872,4449.4,4448.8,3.2078]
[1757080363696,1.4534,4449.3,4448.9,0.65748]
[1757080363901,0.59822872,4449.4,4449.1,1.01117]
[1757080364203,0.59822872,4449.4,4449.3,3.61225]
[1757080364407,0.59822872,4449.4,4449.3,3.86525]
[1757080364603,0.59822872,4449.4,4449.3,10.74456747]
[1757080364801,31.25434166,4451.9,4449.3,10.74456747]
[1757080364802,2.0383,4451.5,4451.2,0.40426]
[1757080365005,1.4534,4451.4,4451.3,0.65726]
[1757080365305,1.4534,4451.9,4451.2,3.2078]
[1757080365608,0.22315484,4451.7,4451.5,0.40424]
[1757080365799,0.5849,4452.0,4451.6,0.252]
[1757080366003,1.4534,4451.9,4451.7,3.2078]
[1757080366204,1.4534,4452.4,4451.8,0.40421]
[1757080366406,1.4534,4452.0,4451.8,0.40421]
[1757080366706,2.0383,4452.0,4451.9,2.89184187]
[1757080366916,2.0383,4452.0,4451.9,0.32651451]
[1757080367308,2.26145484,4452.0,4451.9,0.32651451]
[1757080367508,1.4534,4451.9,4451.1,0.252]
[1757080367903,1.4534,4451.9,4451.2,0.40427]
[1757080368103,1.4534,4451.9,4451.3,0.252]
[1757080368308,1.571,4451.5,4451.2,2.94792083]
[1757080368611,1.79415484,4451.4,4451.3,0.252]
[1757080368814,0.22315484,4451.4,4451.3,0.252]
[1757080369112,1.571,4451.9,4451.3,0.252]
[1757080369314,2.37825484,4451.4,4451.3,0.252]
[1757080369512,2.37825484,4451.4,4450.4,1.01084]
[1757080369513,1.79415484,4451.4,4450.6,0.40432]
[1757080369710,1.571,4451.3,4450.7,0.252]
[1757080369915,0.22315484,4450.9,4450.7,0.6563]
[1757080370210,0.22315484,4450.9,4450.7,2.1238]
[1757080370510,1.571,4451.3,4450.8,0.252]
[1757080370719,0.22315484,4451.3,4451.0,3.2078]
[1757080371013,0.5841,4451.5,4451.0,3.2078]
[1757080371215,1.79415484,4451.1,4451.0,3.2078]
[1757080371417,1.79415484,4451.1,4451.0,3.4598]
[1757080371615,1.79415484,4451.1,4450.5,3.2078]
[1757080371814,0.5841,4451.5,4449.8,1.01097]
[1757080371815,1.571,4450.9,4450.2,0.252]
[1757080372113,0.5841,4450.5,4450.3,0.252]
[1757080372314,1.571,4449.7,4449.4,3.2078]
[1757080372506,0.5841,4450.0,4449.4,3.2078]
[1757080372507,0.5841,4450.0,4449.5,0.252]
[1757080372905,1.571,4450.6,4449.9,3.2078]
[1757080373210,1.571,4450.7,4449.9,3.2078]
[1757080373413,1.571,4450.7,4450.0,0.252]
[1757080373614,0.22315484,4450.1,4450.0,0.252]
[1757080373813,1.79415484,4450.1,4450.0,0.252]
[1757080374113,0.22315484,4450.1,4450.0,0.252]
[1757080374313,1.571,4450.7,4450.0,0.252]
[1757080374515,0.22315484,4450.6,4450.0,0.65635]
[1757080374714,0.22315484,4450.6,4450.2,0.40434]
[1757080374914,1.571,4451.1,4450.4,3.61214]
[1757080375112,1.571,4451.1,4450.4,3.4588]
[1757080375113,0.22315484,4450.7,4450.4,3.4588]
[1757080375311,1.79415484,4450.7,4450.4,3.86314]
[1757080375512,1.84746906,4451.4,4450.5,0.40432]
[1757080375713,0.22315484,4450.8,4450.6,1.87181]
[1757080375910,0.22315484,4450.8,4450.7,3.86311]
[1757080376116,1.571,4451.3,4450.7,3.4588]
[1757080376317,0.22315484,4450.8,4450.7,3.86311]
[1757080376519,0.22315484,4450.9,4450.7,3.4588]
[1757080376821,1.571,4450.8,4450.7,3.4588]
[1757080377115,1.571,4450.8,4450.7,3.2078]
[1757080377316,1.79415484,4450.8,4450.7,0.251]
[1757080378616,1.79415484,4450.8,4450.6,0.251]
[1757080378916,1.571,4450.7,4450.6,3.4588]
[1757080379118,1.79415484,4450.7,4450.6,3.4588]
[1757080379320,1.571,4450.7,4450.6,3.4588]
[1757080379520,1.571,4450.7,4450.6,4.11805162]
[1757080379715,1.571,4450.7,4450.6,3.86705162]
[1757080379917,0.61105819,4450.8,4450.6,4.11705162]
[1757080380111,0.22315484,4450.7,4450.6,3.4578]
[1757080380312,0.61105819,4450.8,4450.6,5.9888666]
[1757080380515,0.61105819,4450.8,4450.7,0.6592466]
[1757080380815,4.0,4450.7,4449.3,3.2078]
[1757080381016,0.22315484,4449.4,4449.1,3.2078]
[1757080381218,0.22315484,4449.3,4449.1,3.2078]
[1757080381414,0.22315484,4449.3,4449.2,1.4675]
[1757080381612,0.5841,4450.5,4449.4,1.4675]
[1757080381911,0.61105819,4450.8,4449.7,3.61219]
[1757080382108,1.571,4450.7,4450.4,3.2078]
[1757080382307,0.61105819,4450.8,4450.5,0.65532]
[1757080382519,1.571,4450.7,4450.4,3.2078]
[1757080382719,1.79415484,4450.6,4450.5,0.251]
[1757080382911,0.61105819,4450.8,4450.6,0.40431]
[1757080383113,1.571,4450.7,4450.4,3.2078]
[1757080383313,1.79415484,4450.6,4450.5,0.251]
[1757080383720,1.571,4450.6,4450.5,0.251]
[1757080384122,0.5841,4451.0,4450.5,0.251]
[1757080384320,2.765414,4451.2,4450.5,1.7185]
[1757080384510,0.22315484,4451.0,4450.5,0.65533]
[1757080384710,0.22315484,4451.0,4450.9,3.2078]
[1757080384922,1.194414,4451.2,4451.1,1.4675]
[1757080385517,1.194414,4451.2,4451.1,1.87178]
[1757080385818,1.571,4451.1,4450.4,1.4675]
[1757080386121,0.5841,4451.0,4450.7,3.2078]
[1757080386415,1.571,4450.9,4450.8,0.25]
[1757080386617,1.571,4450.8,4449.7,3.2078]
[1757080386821,1.571,4450.1,4449.7,3.4578]
[1757080387116,3.2078,4450.7,4450.5,1.4675]
[1757080387319,1.194414,4451.2,4451.1,1.87178]
[1757080387521,1.571,4452.2,4451.6,2.21008]
[1757080387718,0.5841,4453.0,4452.5,0.40414]
[1757080387914,3.56658633,4452.7,4452.6,3.2078]
[1757080388314,3.56658633,4452.7,4452.6,3.4578]
[1757080388825,1.571,4451.9,4451.8,3.2078]
[1757080389024,1.571,4451.9,4451.8,3.4578]
[1757080389321,1.571,4452.4,4452.0,0.40418]
[1757080389514,1.571,4452.4,4452.3,3.2078]
[1757080389720,1.571,4452.4,4452.3,3.4578]
[1757080391416,0.60033167,4452.7,4452.3,3.4578]
[1757080391417,0.60033167,4452.7,4452.6,0.40414]
[1757080391623,0.60033167,4452.7,4452.4,0.40416]
[1757080391813,0.60033167,4452.7,4451.9,1.01051]
[1757080391814,2.1551,4452.5,4452.2,3.2078]
[1757080392020,1.571,4452.4,4452.3,0.25]
[1757080392319,0.22315484,4452.1,4451.7,3.2078]
[1757080392520,1.571,4451.9,4451.7,3.2078]
[1757080392723,1.571,4451.9,4451.8,0.53945538]
[1757080392929,0.5841,4452.0,4451.7,0.25]
[1757080393121,1.571,4451.9,4451.8,0.25]
[1757080393321,1.571,4451.9,4451.2,3.61207]
[1757080393522,0.22315484,4451.5,4451.2,0.40427]
[1757080393721,1.571,4452.1,4451.4,3.61204]
[1757080394023,0.22315484,4451.8,4451.5,0.25]
[1757080394523,1.571,4451.4,4450.5,3.2078]
[1757080394729,0.5841,4451.5,4450.5,3.2078]
[1757080394730,1.571,4450.9,4450.5,3.2078]
[1757080394925,0.22315484,4450.6,4450.5,3.2078]
[1757080395116,1.79415484,4450.6,4450.5,3.2078]
[1757080396629,1.79415484,4450.6,4450.5,3.4568]
[1757080396931,1.79415484,4450.6,4450.5,3.2078]
[1757080397821,1.571,4450.4,4450.3,0.249]
[1757080398326,0.5841,4450.5,4450.2,0.249]
[1757080398628,0.5841,4450.5,4450.0,3.2078]
[1757080398823,1.4545,4449.9,4449.7,0.249]
[1757080399023,0.22315484,4449.8,4449.7,0.249]
[1757080399217,1.4545,4449.7,4449.6,2.01062306]
[1757080399421,1.4545,4449.7,4448.7,31.4135]
[1757080399422,1.67765484,4449.7,4448.4,3.2078]
[1757080399623,0.22315484,4448.5,4447.3,5.16603]
[1757080399818,1.4545,4448.4,4447.3,4.7614]
[1757080400129,0.249,4448.6,4447.9,3.2078]
[1757080400330,1.4545,4448.9,4448.1,1.95815]
[1757080400630,0.22315484,4448.8,4448.5,4.7614]
[1757080400828,0.22315484,4448.7,4448.5,3.2078]
[1757080401022,0.249,4449.1,4448.8,1.5536]
[1757080401223,1.4545,4449.4,4449.0,3.2078]
[1757080401419,0.22315484,4449.1,4448.5,3.2078]
[1757080401630,1.4545,4448.9,4448.2,3.1408549]
[1757080401822,0.6333,4449.0,4448.2,0.249]
[1757080402024,0.249,4449.2,4448.5,3.2078]
[1757080402225,0.6333,4449.0,4448.0,3.2078]
[1757080402434,1.4545,4448.9,4448.0,3.4568]
[1757080402625,1.4545,4448.9,4448.2,1.5536]
[1757080402929,0.22315484,4448.6,4448.3,0.249]
[1757080403125,0.22315484,4448.6,4448.4,1.5536]
[1757080403327,1.4545,4449.1,4448.4,1.5536]
[1757080403522,0.22315484,4448.7,4448.6,3.2078]
[1757080403931,1.7035,4449.2,4448.6,3.2078]
[1757080404130,0.22315484,4448.8,4448.6,3.2078]
[1757080404629,1.67765484,4448.7,4448.6,3.2078]
[1757080404825,1.67765484,4448.7,4448.6,3.54822186]
[1757080405031,1.7035,4449.2,4448.6,5.10182186]
[1757080405230,0.249,4449.2,4448.7,0.34042186]
[1757080405432,1.4545,4449.1,4448.8,1.89402186]
[1757080405731,1.7035,4449.7,4449.0,1.95806]
[1757080405926,1.4545,4450.3,4449.3,1.5536]
[1757080406127,0.22315484,4449.8,4449.4,0.34042186]
[1757080406323,0.22315484,4449.8,4449.5,0.34042186]
[1757080406626,0.22315484,4449.8,4449.6,0.34042186]
[1757080406824,1.4545,4450.3,4449.7,0.34042186]
[1757080407027,1.4545,4449.9,4449.8,0.34042186]
[1757080407625,0.249,4450.4,4449.8,0.34042186]
[1757080407825,0.249,4450.4,4449.9,0.340156]
[1757080408033,0.22315484,4450.2,4450.1,1.5536]
[1757080408331,1.4545,4451.1,4450.1,1.893756]
[1757080408525,3.2078,4451.2,4450.2,0.340156]
[1757080408731,3.2078,4451.2,4448.0,0.6268]
[1757080408732,1.4545,4450.4,4448.6,4.7614]
[1757080408927,0.249,4450.3,4449.2,1.5536]
[1757080409235,0.249,4450.3,4449.3,1.5536]
[1757080409438,0.22315484,4450.0,4449.3,1.5536]
[1757080409825,0.22315484,4449.8,4449.1,3.2078]
[1757080410024,0.249,4450.3,4449.2,0.249]
[1757080410234,0.249,4450.3,4449.5,1.95802]
[1757080410425,0.22315484,4450.1,4449.6,0.65342]
[1757080410626,1.4545,4450.7,4450.0,1.5536]
[1757080410824,1.4545,4450.4,4449.7,1.5536]
[1757080411029,1.4545,4450.4,4450.0,0.249]
[1757080411431,0.22315484,4450.1,4449.4,3.2078]
[1757080411627,0.22315484,4449.9,4449.5,0.249]
[1757080411826,0.22315484,4449.9,4449.6,1.5536]
[1757080412229,0.22315484,4449.9,4449.7,1.5536]
[1757080412731,3.4568,4450.7,4449.7,1.958]
[1757080412931,1.67765484,4450.1,4449.6,0.249]
[1757080413230,0.6333,4450.5,4449.5,3.2078]
[1757080413437,0.22315484,4449.7,4449.5,3.2078]
[1757080413736,0.22315484,4450.1,4449.7,1.5536]
[1757080413932,0.22315484,4450.1,4449.8,1.5536]